bitfinex/quotes_BTCUSD_20241201
["timestamp","ask_amount","ask_price","bid_price","bid_amount"]
[1733046189547,0.00707159,97140.0,97133.0,0.10284521]
[1733046189745,0.00707159,97140.0,97139.0,0.005]
[1733046189987,0.00707159,97140.0,97139.0,0.002]
[1733046190162,0.00707159,97140.0,97139.0,0.004]
[1733046190572,0.00707159,97140.0,97139.0,0.002]
[1733046190781,0.00707159,97140.0,97139.0,0.005]
[1733046191189,0.00707159,97140.0,97139.0,0.003]
[1733046191952,0.00707159,97140.0,97139.0,0.31497426]
[1733046192159,0.00707159,97140.0,97139.0,0.003]
[1733046192379,0.00707159,97140.0,97139.0,0.004]
[1733046192796,0.00707159,97140.0,97136.0,0.31197426]
[1733046193009,0.41178,97139.0,97136.0,0.31197426]
[1733046193232,0.205894,97137.0,97136.0,0.31197426]
[1733046193710,0.21068396,97137.0,97136.0,0.31197426]
[1733046194366,0.29338396,97137.0,97136.0,0.31197426]
[1733046194822,0.29338396,97137.0,97136.0,0.31297426]
[1733046195917,0.29338396,97137.0,97136.0,0.31197426]
[1733046196358,0.29338396,97137.0,97136.0,0.31297426]
[1733046196792,0.29338396,97137.0,97136.0,0.31470286]
[1733046198142,0.29338396,97137.0,97136.0,0.31473696]
[1733046198364,0.29338396,97137.0,97136.0,0.0027286]
[1733046199521,0.29338396,97137.0,97136.0,0.31478855]
[1733046200400,0.29338396,97137.0,97136.0,0.0027286]
[1733046201285,0.29338396,97137.0,97136.0,0.31482194]
[1733046202435,0.29338396,97137.0,97136.0,0.0027286]
[1733046202716,0.29338396,97137.0,97136.0,0.0017286]
[1733046209202,0.29424826,97137.0,97136.0,0.0017286]
[1733046209873,0.34144826,97137.0,97136.0,0.0017286]
[1733046210589,0.44429347,97137.0,97136.0,0.0017286]
[1733046212623,0.34144826,97137.0,97136.0,0.0017286]
[1733046223815,0.34106964,97137.0,97136.0,0.0017286]
[1733046234756,0.44391485,97137.0,97136.0,0.0017286]
[1733046241823,0.34106964,97137.0,97136.0,0.0017286]
[1733046248919,0.29386964,97137.0,97136.0,0.0017286]
[1733046252616,0.21116964,97137.0,97136.0,0.0017286]
[1733046252832,0.2134476,97137.0,97136.0,0.0017286]
[1733046255343,0.2134476,97137.0,97136.0,0.31454704]
[1733046256344,0.2134476,97137.0,97136.0,0.0017286]
[1733046257164,0.00565426,97137.0,97136.0,0.0017286]
[1733046257360,0.00565426,97137.0,97136.0,0.0502286]
[1733046257568,0.0008643,97137.0,97136.0,0.0502286]
[1733046258649,0.0008643,97137.0,97136.0,0.0512286]
[1733046259069,0.0008643,97137.0,97136.0,0.0502286]
[1733046259486,0.0008643,97137.0,97136.0,0.0532286]
[1733046260090,0.0008643,97137.0,97136.0,0.0542286]
[1733046260704,0.0008643,97137.0,97136.0,0.0502286]
[1733046260911,0.0008643,97137.0,97136.0,0.0512286]
[1733046261113,0.0008643,97137.0,97136.0,0.0552286]
[1733046261332,0.0008643,97137.0,97136.0,0.23527381]
[1733046261745,0.0008635,97143.0,97138.0,0.0485]
[1733046261956,0.0008635,97143.0,97142.0,0.205884]
[1733046262165,0.0008635,97143.0,97142.0,0.254384]
[1733046262813,0.0008635,97143.0,97142.0,0.0485]
[1733046264347,0.0008635,97143.0,97142.0,0.0505]
[1733046264548,0.0008635,97143.0,97142.0,0.009]
[1733046264750,0.0008635,97143.0,97142.0,0.002]
[1733046264934,0.00544941,97143.0,97142.0,0.002]
[1733046265110,0.0008635,97143.0,97142.0,0.006]
[1733046265313,0.00544941,97143.0,97137.0,0.205894]
[1733046265546,0.0008635,97143.0,97137.0,0.30873921]
[1733046265765,0.0008635,97143.0,97142.0,0.003]
[1733046265978,0.0008635,97143.0,97137.0,0.30873921]
[1733046266195,0.00544941,97143.0,97137.0,0.30873921]
[1733046266424,0.0008635,97143.0,97142.0,0.002]
[1733046266775,0.00544941,97143.0,97142.0,0.002]
[1733046266987,0.00544941,97143.0,97137.0,0.51463321]
[1733046267376,0.0008635,97143.0,97141.0,0.205885]
[1733046267592,0.0008635,97143.0,97142.0,0.004]
[1733046267805,0.0008635,97143.0,97141.0,0.205885]
[1733046268021,0.0008635,97143.0,97142.0,0.006]
[1733046268253,0.0008635,97143.0,97142.0,0.008]
[1733046268476,0.0008635,97143.0,97142.0,0.002]
[1733046269134,0.0008635,97143.0,97142.0,0.008]
[1733046269821,0.0008635,97143.0,97142.0,0.006]
[1733046270311,0.0008635,97143.0,97141.0,0.205884]
[1733046270539,0.0008635,97143.0,97141.0,0.207884]
[1733046270774,0.0008635,97143.0,97142.0,0.006]
[1733046271509,0.0008635,97143.0,97137.0,0.30873921]
[1733046271737,0.0008635,97143.0,97137.0,0.28714121]
[1733046271959,0.0008635,97143.0,97141.0,0.31283182]
[1733046272212,0.0008635,97143.0,97142.0,0.31183182]
[1733046272445,0.0008635,97143.0,97137.0,0.10284521]
[1733046272446,0.0008635,97143.0,97141.0,0.31183182]
[1733046272664,0.0008635,97143.0,97142.0,0.001]
[1733046272986,0.0008635,97143.0,97142.0,0.003]
[1733046273447,0.0008635,97143.0,97142.0,0.001]
[1733046274126,0.0008635,97143.0,97141.0,0.31183182]
[1733046274563,0.00458429,97142.0,97141.0,0.31183182]
[1733046274772,0.00458429,97142.0,97141.0,0.31583182]
[1733046274977,0.00458429,97142.0,97141.0,0.31183182]
[1733046275438,0.00458429,97142.0,97141.0,0.31683182]
[1733046275654,0.00458429,97142.0,97141.0,0.31183182]
[1733046275858,0.00458429,97142.0,97141.0,0.31783182]
[1733046276949,0.00458429,97142.0,97141.0,0.31983182]
[1733046277356,0.00458429,97142.0,97141.0,0.31783182]
[1733046277565,0.00458429,97142.0,97141.0,0.31983182]
[1733046278236,0.00458429,97142.0,97141.0,0.008]
[1733046278431,0.00686198,97142.0,97141.0,0.008]
[1733046279257,0.07429997,97142.0,97141.0,0.002]
[1733046279461,0.07429997,97142.0,97141.0,0.006]
[1733046279462,0.15399997,97142.0,97141.0,0.006]
[1733046279635,0.20109997,97142.0,97141.0,0.006]
[1733046279838,0.20109997,97142.0,97141.0,0.004]
[1733046280269,0.20109997,97142.0,97141.0,0.001]
[1733046280635,0.411772,97141.0,97136.0,0.0017286]
[1733046281024,0.41178,97139.0,97136.0,0.0017286]
[1733046281225,0.00227808,97138.0,97136.0,0.0017286]
[1733046281628,0.00457731,97137.0,97136.0,0.0017286]
[1733046281894,0.00685541,97137.0,97136.0,0.0017286]
[1733046282720,0.21274941,97137.0,97136.0,0.0017286]
[1733046286643,0.29825232,97137.0,97136.0,0.0017286]
[1733046286879,0.29597422,97137.0,97136.0,0.0017286]
[1733046287295,0.21047131,97137.0,97136.0,0.0017286]
[1733046287503,0.21274939,97137.0,97136.0,0.0017286]
[1733046294061,0.21361369,97137.0,97136.0,0.0017286]
[1733046300818,0.26291369,97137.0,97136.0,0.0017286]
[1733046301042,0.26063561,97137.0,97136.0,0.0017286]
[1733046301985,0.21133561,97137.0,97136.0,0.0017286]
[1733046302245,0.2136137,97137.0,97136.0,0.0017286]
[1733046302463,0.0077197,97137.0,97136.0,0.0017286]
[1733046303700,0.0077197,97137.0,97136.0,0.0027286]
[1733046303905,0.0077197,97137.0,97136.0,0.0057286]
[1733046305611,0.0077197,97137.0,97136.0,0.0027286]
[1733046306282,0.0077197,97137.0,97136.0,0.0017286]
[1733046306695,0.0077197,97137.0,97136.0,0.0027286]
[1733046307759,0.19574402,97137.0,97136.0,0.0027286]
[1733046308528,0.1331197,97137.0,97136.0,0.0027286]
[1733046309199,0.1331197,97137.0,97136.0,0.0017286]
[1733046312139,0.00771956,97137.0,97136.0,0.0017286]
[1733046313275,0.08641956,97137.0,97136.0,0.0017286]
[1733046317525,0.18926477,97137.0,97136.0,0.0017286]
[1733046317730,0.2748236,97137.0,97136.0,0.0017286]
[1733046317945,0.27254565,97137.0,97136.0,0.0017286]
[1733046318158,0.32034565,97137.0,97136.0,0.0017286]
[1733046319308,0.32034565,97137.0,97136.0,0.0027286]
[1733046320261,0.32034565,97137.0,97136.0,0.00141116]
[1733046320462,0.32034565,97137.0,97136.0,0.00041116]
[1733046320665,0.32034565,97137.0,97136.0,0.00141116]
[1733046322533,0.32034565,97137.0,97136.0,0.00041116]
[1733046322913,0.32034565,97137.0,97136.0,0.00141116]
[1733046329042,0.23478682,97137.0,97136.0,0.00141116]
[1733046334040,0.23578682,97137.0,97136.0,0.00141116]
[1733046334684,0.23478682,97137.0,97136.0,0.00141116]
[1733046335697,0.23578682,97137.0,97136.0,0.00141116]
[1733046336848,0.25878682,97137.0,97136.0,0.00141116]
[1733046337241,0.34851785,97137.0,97136.0,0.00141116]
[1733046338026,0.36851785,97137.0,97136.0,1.6e-07]
[1733046339854,0.36751785,97137.0,97136.0,1.6e-07]
[1733046340054,0.36751785,97137.0,97133.0,0.27756517]
[1733046340055,0.01,97134.0,97133.0,0.27756517]
[1733046340316,0.01,97133.0,97132.0,0.27756517]
[1733046340525,0.01,97132.0,97131.0,0.27756517]
[1733046340750,0.13812351,97132.0,97131.0,0.27756517]
[1733046340966,0.238907,97131.0,97130.0,0.27756517]
[1733046341178,0.238907,97131.0,97129.0,0.27756517]
[1733046341179,0.34175221,97131.0,97129.0,0.27756517]
[1733046341387,0.254811,97129.0,97127.0,0.27756517]
[1733046341606,0.205915,97127.0,97126.0,0.27756517]
[1733046341816,0.31552751,97127.0,97126.0,0.27756517]
[1733046342039,0.31324915,97127.0,97126.0,0.27756517]
[1733046343187,0.31324915,97127.0,97125.0,0.27756517]
[1733046343396,0.20592,97125.0,97119.0,0.00017899]
[1733046343604,0.10961095,97124.0,97119.0,0.00017899]
[1733046344670,0.20593,97120.0,97119.0,0.00017899]
[1733046344890,0.31554099,97120.0,97119.0,0.00017899]
[1733046345104,0.31326254,97120.0,97119.0,0.00017899]
[1733046345327,0.31326254,97120.0,97119.0,0.41002131]
[1733046346639,0.31626254,97120.0,97119.0,0.41002131]
[1733046347077,0.31326254,97120.0,97119.0,0.41002131]
[1733046347493,0.32026254,97120.0,97119.0,0.41002131]
[1733046347713,0.21741733,97120.0,97119.0,0.00017899]
[1733046347969,0.21441733,97120.0,97119.0,0.00017899]
[1733046348398,0.21341733,97120.0,97119.0,0.00017899]
[1733046348603,0.21569574,97120.0,97119.0,0.00017899]
[1733046349668,0.21269574,97120.0,97119.0,0.00017899]
[1733046349869,0.21469574,97120.0,97119.0,0.00017899]
[1733046350326,0.21269574,97120.0,97119.0,0.00017899]
[1733046350530,0.27934971,97120.0,97119.0,0.00017899]
[1733046350753,0.2730713,97120.0,97119.0,0.00017899]
[1733046351093,0.21241733,97120.0,97118.0,0.00166217]
[1733046351321,0.00227843,97119.0,97118.0,0.00166217]
[1733046351726,0.00676761,97119.0,97118.0,0.00166217]
[1733046351849,0.00448918,97119.0,97118.0,0.00166217]
[1733046352970,0.00676761,97119.0,97118.0,0.00166217]
[1733046353420,0.17227294,97119.0,97118.0,0.00166217]
[1733046354091,0.17427294,97119.0,97118.0,0.00166217]
[1733046354286,0.17627294,97119.0,97118.0,0.00166217]
[1733046354500,0.17427294,97119.0,97118.0,0.00166217]
[1733046354706,0.17627294,97119.0,97118.0,0.00166217]
[1733046354915,0.11361282,97119.0,97118.0,0.00166217]
[1733046355678,0.11361282,97119.0,97118.0,0.41139003]
[1733046355912,0.19251282,97119.0,97118.0,0.00166217]
[1733046356133,0.27921282,97119.0,97118.0,0.00166217]
[1733046356357,0.36463904,97119.0,97118.0,0.00166217]
[1733046356568,0.36763904,97119.0,97118.0,0.00166217]
[1733046357021,0.35963904,97119.0,97118.0,0.00266217]
[1733046357228,0.25293439,97119.0,97118.0,0.00166217]
[1733046357458,0.26893439,97119.0,97118.0,0.00166217]
[1733046357624,0.27593439,97119.0,97118.0,0.00266217]
[1733046358830,0.26593439,97119.0,97118.0,0.00266217]
[1733046360377,0.12033439,97119.0,97118.0,0.00266217]
[1733046360586,0.12261292,97119.0,97118.0,0.00266217]
[1733046362117,0.21002758,97119.0,97118.0,0.00266217]
[1733046362570,0.12260129,97119.0,97118.0,0.00266217]
[1733046362792,0.16760129,97119.0,97118.0,0.00266217]
[1733046367680,0.26930129,97119.0,97118.0,0.00266217]
[1733046367907,0.26702276,97119.0,97118.0,0.00266217]
[1733046368509,0.26875156,97119.0,97118.0,0.00266217]
[1733046368779,0.35941008,97119.0,97118.0,0.00266217]
[1733046369649,0.26875156,97119.0,97118.0,0.00266217]
[1733046379306,0.26820583,97119.0,97118.0,0.00266217]
[1733046389917,0.27820583,97119.0,97118.0,0.00266217]
[1733046390133,0.28820583,97119.0,97118.0,1.7e-07]
[1733046390373,0.37880978,97119.0,97118.0,1.7e-07]
[1733046393092,0.01,97109.0,97104.0,0.28338568]
[1733046393304,0.023,97105.0,97104.0,0.00566056]
[1733046393529,0.13233243,97105.0,97104.0,0.00566056]
[1733046394903,0.14133243,97105.0,97104.0,0.00666056]
[1733046395164,0.22274247,97105.0,97104.0,0.00566056]
[1733046395401,0.22046362,97105.0,97104.0,0.00666056]
[1733046395600,0.23546362,97105.0,97104.0,0.00766056]
[1733046395878,0.14505358,97105.0,97104.0,0.00766056]
[1733046396085,0.14133242,97105.0,97104.0,0.00666056]
[1733046396713,0.13233242,97105.0,97104.0,0.00566056]
[1733046396925,0.14133242,97105.0,97104.0,0.00566056]
[1733046397131,0.23174246,97105.0,97104.0,0.00566056]
[1733046397365,0.22946362,97105.0,97104.0,0.00566056]
[1733046398127,0.23546362,97105.0,97104.0,0.00666056]
[1733046400165,0.22646362,97105.0,97104.0,0.00666056]
[1733046400384,0.22646362,97105.0,97104.0,0.28338568]
[1733046400385,0.22046362,97105.0,97104.0,0.28338568]
[1733046400598,0.13005358,97105.0,97104.0,0.28338568]
[1733046400805,0.1323324,97105.0,97104.0,0.28338568]
[1733046401019,0.1323324,97105.0,97104.0,0.00566056]
[1733046402523,0.13183768,97105.0,97104.0,0.00566056]
[1733046402980,0.14083768,97105.0,97104.0,0.00566056]
[1733046403217,0.23119825,97105.0,97104.0,0.00566056]
[1733046403429,0.22891943,97105.0,97104.0,0.00566056]
[1733046403653,0.12955886,97105.0,97104.0,0.00566056]
[1733046403845,0.13183774,97105.0,97104.0,0.00566056]
[1733046404286,0.14083774,97105.0,97104.0,0.00666056]
[1733046405019,0.14683774,97105.0,97104.0,0.00766056]
[1733046405468,0.14083774,97105.0,97104.0,0.00666056]
[1733046405685,0.14583774,97105.0,97104.0,0.00666056]
[1733046406116,0.14583774,97105.0,97104.0,0.00752496]
[1733046406798,0.23068135,97105.0,97104.0,0.00752496]
[1733046407025,0.22840247,97105.0,97104.0,0.00752496]
[1733046407672,0.14355886,97105.0,97104.0,0.00752496]
[1733046407940,0.14583773,97105.0,97104.0,0.00752496]
[1733046412825,0.14583773,97105.0,97104.0,0.28538727]
[1733046413039,0.14583773,97105.0,97104.0,0.00752496]
[1733046413692,0.15583773,97105.0,97104.0,0.00752496]
[1733046415584,0.15583773,97105.0,97104.0,0.28538005]
[1733046415823,0.2466983,97105.0,97104.0,0.28538005]
[1733046416045,0.24441943,97105.0,97104.0,0.28538005]
[1733046416429,0.24441943,97105.0,97104.0,0.00752496]
[1733046417235,0.24441943,97105.0,97104.0,0.28538005]
[1733046417441,0.24441943,97105.0,97104.0,0.00752496]
[1733046418213,0.24441943,97105.0,97104.0,0.28538005]
[1733046418388,0.24441943,97105.0,97104.0,0.00752496]
[1733046418607,0.15355886,97105.0,97104.0,0.28538005]
[1733046418830,0.1558377,97105.0,97104.0,0.00752496]
[1733046419037,0.1575667,97105.0,97104.0,0.00752496]
[1733046422775,0.1575667,97105.0,97104.0,0.28540452]
[1733046422987,0.1575667,97105.0,97104.0,0.28541286]
[1733046423423,0.24906017,97105.0,97104.0,0.28541286]
[1733046423597,0.24678133,97105.0,97104.0,0.28541286]
[1733046425147,0.24678133,97105.0,97104.0,0.00752496]
[1733046425380,0.24678133,97105.0,97104.0,0.2854293]
[1733046425591,0.24678133,97105.0,97104.0,0.00752496]
[1733046425825,0.24678133,97105.0,97104.0,0.2854472]
[1733046427143,0.24678133,97105.0,97104.0,0.00752496]
[1733046427809,0.15528786,97105.0,97104.0,0.00752496]
[1733046428034,0.15756675,97105.0,97104.0,0.00752496]
[1733046428510,0.14756675,97105.0,97104.0,0.00752496]
[1733046435647,0.14756675,97105.0,97104.0,0.41810658]
[1733046436324,0.14756675,97105.0,97104.0,0.00752496]
[1733046436521,0.23936022,97105.0,97104.0,0.00752496]
[1733046436776,0.23708133,97105.0,97104.0,0.00752496]
[1733046437699,0.14528786,97105.0,97104.0,0.00752496]
[1733046437911,0.14756663,97105.0,97104.0,0.41810658]
[1733046438125,0.14756663,97105.0,97104.0,0.00752496]
[1733046440949,0.14756663,97105.0,97104.0,0.41837468]
[1733046441415,0.14756663,97105.0,97104.0,0.41837435]
[1733046442090,0.14756663,97105.0,97104.0,0.00752496]
[1733046442537,0.14756663,97105.0,97104.0,0.41837201]
[1733046444480,0.19803337,97105.0,97104.0,0.41837201]
[1733046445785,0.20803337,97105.0,97104.0,0.00752496]
[1733046446459,0.20803337,97105.0,97104.0,0.41837243]
[1733046448390,0.20803337,97105.0,97104.0,0.00752496]
[1733046448885,0.20803337,97105.0,97104.0,0.41837494]
[1733046449769,0.20803337,97105.0,97104.0,0.00752496]
[1733046453130,0.15756663,97105.0,97104.0,0.00752496]
[1733046454242,0.15756663,97105.0,97104.0,0.05672496]
[1733046454461,0.15756663,97105.0,97104.0,0.41837494]
[1733046454896,0.15756663,97105.0,97104.0,0.00752496]
[1733046455770,0.14756663,97105.0,97104.0,0.00752496]
[1733046460945,0.14756663,97105.0,97104.0,0.41830722]
[1733046461372,0.14756663,97105.0,97104.0,0.41830884]
[1733046463569,0.14756663,97105.0,97104.0,0.00752496]
[1733046463982,0.14756663,97105.0,97104.0,0.41831477]
[1733046464455,0.14756663,97105.0,97104.0,0.00752496]
[1733046464710,0.14756663,97105.0,97104.0,0.41831427]
[1733046464920,0.15800046,97105.0,97104.0,0.41831427]
[1733046467275,0.15800046,97105.0,97104.0,0.00752496]
[1733046467720,0.15800046,97105.0,97104.0,0.41832494]
[1733046469690,0.15800046,97105.0,97104.0,0.00752496]
[1733046470572,0.15800046,97105.0,97104.0,0.41832494]
[1733046470782,0.15800046,97105.0,97104.0,0.00752496]
[1733046470988,0.15800046,97105.0,97104.0,0.41833162]
[1733046471445,0.15800046,97105.0,97104.0,0.00752496]
[1733046471877,0.15800046,97105.0,97104.0,0.41833162]
[1733046472519,0.15800046,97105.0,97104.0,0.00752496]
[1733046472737,0.15800046,97105.0,97104.0,0.41834914]
[1733046472951,0.15800046,97105.0,97104.0,0.00752496]
[1733046473163,0.15800046,97105.0,97104.0,0.4183504]
[1733046474022,0.15800046,97105.0,97104.0,0.00752496]
[1733046474299,0.15800046,97105.0,97104.0,0.41835134]
[1733046474730,0.15800046,97105.0,97104.0,0.00752496]
[1733046475172,0.15800046,97105.0,97104.0,0.41835058]
[1733046475785,0.15800046,97105.0,97104.0,0.00752496]
[1733046475991,0.15800046,97105.0,97104.0,0.41835241]
[1733046476633,0.14756663,97105.0,97104.0,0.41835241]
[1733046476907,0.14756663,97105.0,97104.0,0.00752496]
[1733046481070,0.14756663,97105.0,97104.0,0.41836706]
[1733046481625,0.14756663,97105.0,97104.0,0.00752496]
[1733046482376,0.14756663,97105.0,97104.0,0.41836706]
[1733046482577,0.24825009,97105.0,97104.0,0.00752496]
[1733046482824,0.29187132,97105.0,97104.0,0.00752496]
[1733046496783,0.44187132,97105.0,97104.0,0.00752496]
[1733046509353,0.39597132,97105.0,97104.0,0.00752496]
[1733046510594,0.30528786,97105.0,97104.0,0.00752496]
[1733046522677,0.30528786,97105.0,97104.0,0.00752496]
[1733046531300,0.28278258,97105.0,97104.0,0.00752496]
[1733046550147,0.28278258,97105.0,97104.0,0.00440496]
[1733046550353,0.27278258,97105.0,97104.0,0.00440496]
[1733046550567,0.27278258,97105.0,97104.0,0.41531818]
[1733046551150,0.27278258,97105.0,97104.0,0.00440496]
[1733046553497,0.36284764,97105.0,97104.0,0.4153078]
[1733046553712,0.37284764,97105.0,97104.0,0.00440496]
[1733046556278,0.37284764,97105.0,97104.0,0.4153078]
[1733046557328,0.37284764,97105.0,97104.0,0.41532879]
[1733046565043,0.37284764,97105.0,97104.0,0.00440496]
[1733046566312,0.37284764,97105.0,97104.0,9.6e-07]
[1733046566574,0.01,97094.0,97093.0,0.0017276]
[1733046566817,0.37080929,97094.0,97093.0,0.0017276]
[1733046567032,0.4131158,97094.0,97093.0,0.0017276]
[1733046567465,0.01,97085.0,97084.0,0.0008638]
[1733046567694,0.216005,97085.0,97084.0,0.0008638]
[1733046567955,0.32303881,97085.0,97084.0,0.0008638]
[1733046568391,0.32303881,97085.0,97084.0,0.2326655]
[1733046568597,0.32303881,97085.0,97084.0,0.0008638]
[1733046568802,0.40524149,97085.0,97084.0,0.00092347]
[1733046569023,0.40524149,97085.0,97084.0,0.00192347]
[1733046569241,0.41924149,97085.0,97084.0,0.00192347]
[1733046570120,0.33703881,97085.0,97084.0,0.00192347]
[1733046577942,0.32703881,97085.0,97084.0,0.00192347]
[1733046579471,0.33703881,97085.0,97084.0,0.00192347]
[1733046580560,0.48703881,97085.0,97084.0,0.00192347]
[1733046606429,0.48703881,97085.0,97084.0,0.23322787]
[1733046606664,0.48703881,97085.0,97084.0,0.00192347]
[1733046607985,0.48703881,97085.0,97084.0,0.23333476]
[1733046608405,0.48703881,97085.0,97084.0,0.23337583]
[1733046608537,0.48703881,97085.0,97084.0,0.00192347]
[1733046610006,0.57711435,97085.0,97084.0,0.00192347]
[1733046613063,0.57711435,97085.0,97084.0,0.27948876]
[1733046613285,0.48703881,97085.0,97084.0,0.27948876]
[1733046614395,0.48703881,97085.0,97084.0,0.28007927]
[1733046618232,0.48703881,97085.0,97084.0,0.00192347]
[1733046618441,0.48703881,97085.0,97084.0,0.28014584]
[1733046618660,0.48703881,97085.0,97084.0,0.00192347]
[1733046619999,0.48703881,97085.0,97084.0,0.28015485]
[1733046620203,0.48703881,97085.0,97084.0,0.00192347]
[1733046623483,0.48703881,97085.0,97084.0,0.28020379]
[1733046625279,0.48703881,97085.0,97084.0,0.28021899]
[1733046626311,0.57711435,97085.0,97084.0,0.28021899]
[1733046626880,0.57711435,97085.0,97084.0,0.00192347]
[1733046627767,0.57711435,97085.0,97084.0,0.28026332]
[1733046628013,0.57711435,97085.0,97084.0,0.00192347]
[1733046628673,0.57711435,97085.0,97084.0,0.28027906]
[1733046628901,0.48703881,97085.0,97084.0,0.28027906]
[1733046629165,0.48703881,97085.0,97084.0,0.28028043]
[1733046630599,0.48703881,97085.0,97084.0,0.28028191]
[1733046630831,0.48703881,97085.0,97084.0,0.00192347]
[1733046631294,0.48703881,97085.0,97084.0,0.28028302]
[1733046631739,0.48863048,97085.0,97084.0,0.28028302]
[1733046632663,0.48863048,97085.0,97084.0,0.00192347]
[1733046632883,0.48863048,97085.0,97084.0,0.28028243]
[1733046633721,0.48863048,97085.0,97084.0,0.00192347]
[1733046634402,0.48863048,97085.0,97084.0,0.28028502]
[1733046634612,0.48863048,97085.0,97084.0,0.28028555]
[1733046634823,0.48863048,97085.0,97084.0,0.00192347]
[1733046635046,0.48863048,97085.0,97084.0,0.28028559]
[1733046635272,0.48863048,97085.0,97084.0,0.00192347]
[1733046638408,0.58688519,97085.0,97084.0,0.00192347]
[1733046639765,0.48863048,97085.0,97084.0,0.00192347]
[1733046641926,0.48863048,97085.0,97084.0,0.28029279]
[1733046642167,0.48863048,97085.0,97084.0,0.00192347]
[1733046654685,0.53573048,97085.0,97084.0,0.00192347]
[1733046657808,0.48863048,97085.0,97084.0,0.00192347]
[1733046658665,0.48863048,97085.0,97079.0,0.41103545]
[1733046658666,0.356015,97080.0,97079.0,0.39705892]
[1733046658871,0.45886021,97080.0,97079.0,0.39705892]
[1733046659075,0.206041,97068.0,97067.0,0.0451]
[1733046659304,0.30888621,97068.0,97067.0,0.0451]
[1733046659478,0.31466558,97068.0,97067.0,0.0451]
[1733046660892,0.31466558,97068.0,97067.0,0.0461]
[1733046664733,0.31466558,97068.0,97067.0,0.0469642]
[1733046671477,0.31466558,97068.0,97067.0,0.0018642]
[1733046673385,0.31466558,97068.0,97067.0,0.0008642]
[1733046678998,0.31466558,97068.0,97067.0,0.0500642]
[1733046680844,0.31466558,97068.0,97067.0,0.0510642]
[1733046682958,0.00577937,97068.0,97067.0,0.0510642]
[1733046683177,0.00577937,97068.0,97067.0,0.1333642]
[1733046683393,0.0017284,97084.0,97068.0,0.1315]
[1733046683610,0.0017284,97084.0,97080.0,0.31291413]
[1733046683844,0.0017284,97084.0,97081.0,0.44441413]
[1733046683845,0.0055446,97083.0,97081.0,0.44441413]
[1733046684069,0.206009,97083.0,97081.0,0.44441413]
[1733046684328,0.206009,97083.0,97082.0,0.31291413]
[1733046684546,0.206009,97083.0,97081.0,0.1315]
[1733046685212,0.206009,97083.0,97081.0,0.1325]
[1733046689697,0.206009,97083.0,97081.0,0.1325]
[1733046692048,0.30885421,97083.0,97081.0,0.001]
[1733046692258,0.14423723,97082.0,97081.0,0.001]
[1733046692697,0.14423723,97082.0,97081.0,0.27867649]
[1733046693162,0.10284521,97082.0,97081.0,0.001]
[1733046693586,0.10284521,97082.0,97081.0,0.27767649]
[1733046693825,0.206013,97081.0,97080.0,0.27767649]
[1733046694088,0.30885821,97081.0,97080.0,0.27767649]
[1733046694508,0.31441418,97081.0,97080.0,0.27767649]
[1733046694722,0.10840118,97081.0,97080.0,0.27768095]
[1733046695176,0.20603,97073.0,97072.0,0.40994516]
[1733046695410,0.30887521,97073.0,97072.0,0.40994516]
[1733046695630,0.206041,97068.0,97067.0,0.0008642]
[1733046696106,0.21159162,97068.0,97067.0,0.0008642]
[1733046697453,0.21159162,97068.0,97067.0,0.0028642]
[1733046697878,0.21159162,97068.0,97067.0,0.0038642]
[1733046701481,0.21159162,97068.0,97067.0,0.0028642]
[1733046701699,0.21159162,97068.0,97067.0,0.0008642]
[1733046704310,0.21159162,97068.0,97067.0,0.0038642]
[1733046704508,0.21159162,97068.0,97067.0,0.0018642]
[1733046704712,0.21159162,97068.0,97067.0,0.0008642]
[1733046704915,0.21159162,97068.0,97067.0,0.0028642]
[1733046705158,0.21159162,97068.0,97067.0,0.0038642]
[1733046705326,0.21159162,97068.0,97067.0,0.0018642]
[1733046705527,0.21159162,97068.0,97067.0,0.0038642]
[1733046706187,0.21159162,97068.0,97067.0,0.0505642]
[1733046706397,0.21159162,97068.0,97067.0,0.1286642]
[1733046706609,0.21159162,97068.0,97067.0,0.1296642]
[1733046706823,0.21159162,97068.0,97067.0,0.1276642]
[1733046707258,0.21159162,97068.0,97067.0,0.1296642]
[1733046707477,0.21159162,97068.0,97067.0,0.1276642]
[1733046707896,0.21159162,97068.0,97067.0,0.1296642]
[1733046714448,0.21159162,97068.0,97067.0,0.1291382]
[1733046718815,0.00555062,97068.0,97067.0,0.1291382]
[1733046719257,0.206032,97072.0,97067.0,0.1291382]
[1733046719468,0.00552697,97068.0,97067.0,0.1291382]
[1733046719681,0.206032,97072.0,97067.0,0.1291382]
[1733046719878,0.00552647,97068.0,97067.0,0.1291382]
[1733046720161,0.206032,97072.0,97067.0,0.44054554]
[1733046720416,0.206032,97072.0,97067.0,0.1281382]
[1733046720635,0.206036,97070.0,97067.0,0.1281382]
[1733046720861,0.206036,97070.0,97067.0,0.1261382]
[1733046721302,0.206036,97070.0,97067.0,0.43854554]
[1733046721303,0.00552645,97069.0,97067.0,0.43854554]
[1733046722204,0.00552645,97069.0,97067.0,0.44054554]
[1733046722427,0.00552645,97069.0,97067.0,0.1271382]
[1733046722660,0.00552645,97069.0,97067.0,0.43954554]
[1733046722907,0.00652645,97069.0,97067.0,0.44054554]
[1733046723139,0.001,97069.0,97067.0,0.44054554]
[1733046723362,0.001,97069.0,97067.0,0.44254554]
[1733046723363,0.00552662,97068.0,97067.0,0.44254554]
[1733046723852,0.001,97069.0,97067.0,0.1281382]
[1733046724078,0.206033,97072.0,97068.0,0.31245019]
[1733046724552,0.001,97069.0,97068.0,0.31245019]
[1733046724800,0.206033,97072.0,97068.0,0.31245019]
[1733046725019,0.001,97069.0,97068.0,0.31245019]
[1733046725453,0.206033,97072.0,97068.0,0.31245019]
[1733046725664,0.206033,97072.0,97068.0,0.31445019]
[1733046725883,0.00552612,97071.0,97068.0,0.31245019]
[1733046726341,0.00552612,97071.0,97067.0,0.43858839]
[1733046726553,0.00552612,97071.0,97068.0,0.31445019]
[1733046726987,0.00552612,97071.0,97068.0,0.31245019]
[1733046727205,0.00552612,97071.0,97067.0,0.43858839]
[1733046727397,0.001,97069.0,97068.0,0.004]
[1733046727708,0.206033,97072.0,97068.0,0.002]
[1733046727918,0.00552612,97071.0,97070.0,0.31257546]
[1733046729018,0.00552612,97071.0,97068.0,0.31657546]
[1733046729222,0.00552612,97071.0,97067.0,0.43871366]
[1733046729436,0.00552612,97071.0,97068.0,0.31257546]
[1733046729646,0.00552612,97071.0,97069.0,0.31257546]
[1733046729824,0.00552612,97071.0,97070.0,0.31257546]
[1733046730053,0.00552612,97071.0,97069.0,0.31257546]
[1733046730265,0.00552612,97071.0,97068.0,0.31457546]
[1733046730266,0.206036,97070.0,97068.0,0.31457546]
[1733046730502,0.00552612,97071.0,97068.0,0.002]
[1733046730721,0.206033,97072.0,97070.0,0.002]
[1733046731163,0.206033,97072.0,97070.0,0.004]
[1733046731387,0.206033,97072.0,97070.0,0.002]